fUSD/lending_fUSD_20250806
["ID","MTS","AMOUNT","RATE_DAILY","PERIOD"]
[377665764,1754482232815,-286.45,0.00034924,2]
[377665765,1754482232825,-193.0,0.00035,5]
[377665766,1754482232835,-1350.24820069,0.00035135,2]
[377665767,1754482232845,-5000.0,0.00035342,2]
[377665768,1754482232854,-406.0,0.00035407,2]
[377665769,1754482232864,-311.24184055,0.0003544,2]
[377665770,1754482232873,-167.366,0.00035517,42]
[377665771,1754482232882,-870.9380165,0.00035958,2]
[377665772,1754482233518,-2080.7219835,0.00035958,2]
[377665773,1754482233528,-12068.86,0.00035958,2]
[377665774,1754482233538,-1203.36065682,0.00035958,2]
[377665775,1754482233550,-1958.75934318,0.00035958,2]
[377665776,1754482233560,-175.0,0.00035958,7]
[377665777,1754482233569,-46.65523316,0.00035958,2]
[377665778,1754482233667,-291.77476684,0.00035958,2]
[377665779,1754482233677,-2720.11,0.00035958,2]
[377665780,1754482233686,-3441.23,0.00036006,2]
[377665781,1754482233696,-1000.0,0.00036101,2]
[377665782,1754482233706,-150.99,0.00036261,2]
[377665783,1754482233717,-253.76,0.00036261,2]
[377665784,1754482233727,-1281.55,0.000364,2]
[377665785,1754482233737,-284.74,0.00036456,2]
[377665786,1754482233746,-241.06552011,0.000365,120]
[377665787,1754482233756,-301.25,0.00036613,2]
[377665788,1754482233765,-286.45,0.00036654,2]
[377665789,1754482233774,-100.01779183,0.00036812,2]
[377665790,1754482233786,-54.51220817,0.00036812,2]
[377665791,1754482233796,-260.51,0.00036831,30]
[377665792,1754482233806,-2240.0,0.00037033,3]
[377665793,1754482233816,-500.0,0.00037259,7]
[377665794,1754482233826,-500.0,0.00037259,7]
[377665795,1754482233837,-600.0,0.00037259,7]
[377665796,1754482233847,-150.0,0.0003738,2]
[377665797,1754482233856,-236.497,0.0003738,2]
[377665798,1754482233866,-865.0,0.0003738,2]
[377665799,1754482233875,-165.54090232,0.00037693,120]
[377665800,1754482233885,-326.14,0.00037808,60]
[377665801,1754482233895,-284.74,0.00037823,2]
[377665802,1754482233904,-326.15,0.00037839,80]
[377665803,1754482233913,-150.41,0.00037866,2]
[377665804,1754482233923,-151.57,0.00037866,2]
[377665805,1754482233932,-151.12,0.00037866,2]
[377665806,1754482233942,-326.14,0.00037869,100]
[377665807,1754482233951,-326.15,0.000379,120]
[377665808,1754482233961,-225.0,0.0003806,2]
[377665809,1754482233970,-500.0,0.00038081,7]
[377665810,1754482233979,-600.0,0.00038081,7]
[377665811,1754482233988,-150.0,0.00038366,30]
[377665812,1754482233998,-315.77364428,0.00038366,30]
[377665813,1754482234008,-202.87284966,0.00038366,30]
[377665814,1754482234017,-69.86134807,0.00038384,2]
[377665815,1754482234029,-216.58865193,0.00038384,2]
[377665816,1754482234039,-500.0,0.0003878,120]
[377665817,1754482234048,-500.0,0.0003878,120]
[377665818,1754482234058,-500.0,0.0003878,120]
[377665819,1754482234067,-2000.0,0.000389,2]
[377665820,1754482234077,-500.0,0.00038903,7]
[377665821,1754482234088,-600.0,0.00038903,7]
[377665822,1754482234098,-500.0,0.00038903,7]
[377665823,1754482234108,-193.13285121,0.00038906,2]
[377665824,1754482234120,-306.27867122,0.00038906,2]
[377665916,1754482238653,-495.16103179,0.00031963,3]
[377665921,1754482238684,-392.83896821,0.00031963,3]
[377665923,1754482238693,-1776.0,0.00034203,3]
[377665925,1754482238702,-888.0,0.00036458,3]
[377665927,1754482238712,-888.0,0.00038323,3]
[377665928,1754482238722,-1776.0,0.00038698,3]
[377665930,1754482238731,-680.59847757,0.00038906,2]
[377665932,1754482238740,-1180.01,0.00038906,2]
[377665934,1754482238750,-200.0,0.0003895,20]
[377665936,1754482238759,-13391.0595875,0.00039,30]
[377666038,1754482239735,-888.0,0.00032463,3]
[377666040,1754482239745,-892.0,0.0003438,2]
[377666042,1754482239755,-1776.0,0.00034703,3]
[377666044,1754482239764,-2968.9404125,0.00039,30]
[377666046,1754482239773,-150.0,0.00039048,2]
[377666048,1754482239783,-568.78591399,0.00039075,3]
[377666060,1754482239901,-892.0,0.0003738,2]
[377666062,1754482239910,-1431.21408601,0.00039075,3]
[377666064,1754482239920,-1033.6376,0.00039075,3]
[377666066,1754482239930,-360.6162814,0.0003915,2]
[377666071,1754482239963,-639.3837186,0.0003915,2]
[377666073,1754482239973,-311.92426315,0.0003915,2]
[377666317,1754482242462,-301.51191858,0.00032963,3]
[377666324,1754482242520,-586.48808142,0.00032963,3]
[377666326,1754482242529,-125.06271858,0.00035203,3]
[377666329,1754482242542,-1650.93728142,0.00035203,3]
[377666331,1754482242551,-34707.92247298,0.0003915,2]
[377666360,1754482242829,-464.76347741,0.00033463,3]
[377666362,1754482242842,-362.76485203,0.00033463,3]
[377666723,1754482246323,-60.47167056,0.00033463,3]
[377666724,1754482246333,-288.4492,0.00035703,3]
[377670858,1754482313954,156.12,0.00013699,2]
[377670876,1754482879231,2839.33,0.00030136,120]
[377670890,1754483189498,180.0,0.0003,120]
[377670891,1754483192084,156.12,0.00013699,2]
[377670896,1754483270264,513.0,0.0003013,120]
[377670897,1754483296463,860.87217385,0.0001439,2]
[377670964,1754483432423,-585.64599541,0.0002599,2]
[377670965,1754483432434,-443.0,0.00025999,2]
[377670966,1754483432443,-3050.42900476,0.00026,2]
[377670967,1754483432867,-880.43603497,0.00026,2]
[377670968,1754483432879,-482.35222295,0.00026,2]
[377670969,1754483432888,-3267.12521455,0.00026,2]
[377670970,1754483432899,-1166.52478545,0.00026,2]
[377670971,1754483432909,-211.06632275,0.00026,2]
[377670972,1754483432919,-250.0,0.00027,2]
[377670973,1754483432927,-1009.16522869,0.00027,2]
[377670974,1754483432936,-3032.97622415,0.00027,2]
[377670975,1754483432945,-394.20090216,0.00027,2]
[377670976,1754483432954,-1856.15093229,0.0002739,2]
[377670977,1754483432968,-494.06499999,0.0002739,2]
[377670978,1754483433041,-1657.3167091,0.0002739,2]
[377670979,1754483433051,-5000.0,0.0002739,2]
[377670980,1754483433060,-7916.27767154,0.0002739,2]
[377670981,1754483433070,-976.789998,0.0002739,2]
[377670982,1754483433080,-3159.89574728,0.0002739,2]
[377670983,1754483433089,-1008.82,0.0002739,2]
[377670984,1754483433099,-156.12,0.00027397,2]
[377670985,1754483433108,-196.05163176,0.000275,2]
[377670986,1754483433118,-535.48272959,0.000275,2]
[377670987,1754483433127,-159.22933399,0.000282,2]
[377670988,1754483433137,-50878.89049438,0.00029,2]
[377670989,1754483433146,-6320.14015325,0.000299,2]
[377670990,1754483433155,-19408.71872399,0.0003,2]
[377670991,1754483433166,-1772.71116157,0.0003,2]
[377670992,1754483433176,-161.90373043,0.0003,2]
[377670993,1754483433186,-214.83,0.00032112,2]
[377670994,1754483433199,-600.0,0.00032605,2]
[377670995,1754483433209,-312.62,0.00032605,2]
[377670996,1754483433218,-1492.51702013,0.00033,2]
[377670997,1754483433229,-301.25,0.00033229,2]
[377670998,1754483433239,-500.0,0.00033469,7]
[377670999,1754483433249,-500.0,0.00033469,7]
[377671000,1754483433258,-18863.39809778,0.0003347,2]
[377671001,1754483433269,-1182.17205285,0.000335,2]
[377671002,1754483433279,-214.83,0.00033842,2]
[377671003,1754483433289,-1170.0,0.00034753,2]
[377671004,1754483433298,-183.14611447,0.000349,2]
[377671005,1754483433308,-26807.81039929,0.00034989,2]
[377671006,1754483433362,-3284.01709725,0.00034989,2]
[377671067,1754483438429,-888.0,0.00028,3]
[377671069,1754483438439,-215.9,0.0003024,3]
[377671085,1754483438578,-1560.1,0.0003024,3]
[377671087,1754483438587,-1103.9,0.00034753,2]
[377671089,1754483438596,-263.90952005,0.00034988,7]
[377671091,1754483438605,-483.92166056,0.00034988,7]
[377671093,1754483438614,-500.0,0.00034988,7]
[377671095,1754483438624,-500.0,0.00034988,7]
[377671096,1754483438633,-500.0,0.00034988,7]
[377671099,1754483438642,-277.89095947,0.00034988,7]
[377671101,1754483438651,-30962.43786,0.00034989,2]
[377671357,1754483440996,-469.55,0.000285,3]
[377671359,1754483441007,-323.802,0.000285,3]
[377671361,1754483441019,-94.648,0.000285,3]
[377671363,1754483441028,-662.31438713,0.0003074,3]
[377671496,1754483442710,-849.15173355,0.00029,3]
[377671506,1754483445850,-38.84826645,0.00029,3]
[377671507,1754483445861,-888.0,0.000295,3]
[377671508,1754483445871,-519.78620776,0.0003074,3]
[377671509,1754483445931,-593.89940511,0.0003074,3]
[377671510,1754483445940,-426.56700204,0.00034753,2]
[377671520,1754484168306,156.12,0.00013699,2]
[377671523,1754484358762,25023.43,0.00023,30]
[377671542,1754484632019,-3447.72131598,0.00023618,2]
[377671543,1754484632201,-333.31379649,0.00023618,2]
[377671544,1754484632258,-3470.24870706,0.00023618,2]
[377671545,1754484632268,-5000.0,0.00023618,2]
[377671546,1754484632278,-5000.0,0.00023618,2]
[377671547,1754484632288,-5000.0,0.00023618,2]
[377671548,1754484632298,-156.12,0.00031311,2]
[377671549,1754484632307,-200.0,0.000314,5]
[377671550,1754484632316,-193.34,0.00031847,2]
[377671551,1754484632327,-513.0,0.00032194,2]
[377671552,1754484632336,-193.34,0.00033578,2]
[377671553,1754484632346,-298.60303387,0.0003365,16]
[377671554,1754484632356,-301.25,0.00034334,2]
[377671555,1754484632366,-1502.49635799,0.0003466,2]
[377671556,1754484632375,-809.0,0.00034663,2]
[377671557,1754484632384,-436.433,0.00034663,2]
[377671558,1754484632394,-350.0,0.00034954,2]
[377671559,1754484632403,-8310.35120249,0.00034979,2]
[377671560,1754484632412,-627.19477944,0.00034999,30]
[377671561,1754484632421,-300.0,0.00035,15]
[377671562,1754484632430,-600.0,0.00035131,2]
[377671563,1754484632439,-442.35,0.00035131,2]
[377671564,1754484632448,-193.34,0.00035308,2]
[377671565,1754484632457,-150.0,0.0003531,4]
[377671566,1754484632467,-150.0,0.0003531,4]
[377671567,1754484632476,-150.0,0.0003531,4]
[377671568,1754484632485,-150.0,0.0003531,4]
[377671569,1754484632495,-150.0,0.0003531,4]
[377671570,1754484632504,-150.0,0.00035325,2]
[377671571,1754484632513,-989.8023742,0.00035341,2]
[377671572,1754484632522,-682.73336599,0.00035531,2]
[377671573,1754484632532,-1487.5508,0.00035703,3]
[377671574,1754484632542,-164.881,0.00035703,43]
[377671575,1754484632551,-800.73666381,0.00035737,2]
[377671577,1754484632560,-918.73996164,0.00035943,2]
[377671580,1754484632570,-13726.30716175,0.00036,2]
[377671583,1754484632579,-1036.74325946,0.00036149,2]
[377671586,1754484632588,-1153.4,0.000362,2]
[377671589,1754484632598,-1154.74655729,0.00036355,2]
[377671592,1754484632607,-1272.74985511,0.00036561,2]
[377671595,1754484632616,-150.0,0.00036617,7]
[377671597,1754484632625,-154.55,0.0003662,2]
[377671599,1754484632635,-250.16,0.00036707,2]
[377671601,1754484632644,-1390.75315294,0.00036767,2]
[377671604,1754484632654,-513.0,0.00036829,11]
[377671607,1754484632663,-1508.75645076,0.00036973,2]
[377671610,1754484632672,-193.34,0.00037038,2]
[377671613,1754484632680,-150.99,0.00037067,2]
[377671616,1754484632690,-13619.03,0.00037067,2]
[377671619,1754484632703,-3474.13,0.00037067,2]
[377671621,1754484632712,-1000.0,0.00037111,2]
[377671623,1754484632722,-955.07205217,0.00037179,2]
[377671625,1754484632734,-671.68769642,0.00037179,2]
[377671627,1754484632743,-300.0,0.00037247,2]
[377671629,1754484632752,-172.99,0.00037247,2]
[377671631,1754484632761,-537.43,0.00037247,2]
[377671633,1754484632771,-77.13245972,0.00037247,2]
[377671635,1754484632782,-282.17754028,0.00037247,2]
[377671637,1754484632791,-150.0,0.00037247,2]
[377671639,1754484632800,-48.28606506,0.00037247,2]
[377671641,1754484632812,-101.71393494,0.00037247,2]
[377671643,1754484632821,-172.99,0.00037247,2]
[377671645,1754484632830,-537.43,0.00037247,2]
[377671647,1754484632840,-150.0,0.00037247,2]
[377671649,1754484632850,-359.31,0.00037247,2]
[377671651,1754484632859,-150.0,0.00037247,2]
[377671653,1754484632868,-172.99,0.00037247,2]
[377671655,1754484632877,-128.46220012,0.00037247,2]
[377671657,1754484632888,-230.84779988,0.00037247,2]
[377671659,1754484632897,-150.0,0.00037247,2]
[377671661,1754484632906,-73.95199135,0.00037247,2]
[377671669,1754484632978,-463.47800865,0.00037247,2]
[377671671,1754484632987,-175.0,0.00037252,7]
[377671673,1754484632997,-150.92042449,0.00037259,7]
[377671706,1754484638355,-888.0,0.00031811,3]
[377671708,1754484638365,-1776.0,0.00034051,3]
[377671710,1754484638374,-1170.0,0.00034663,2]
[377671712,1754484638383,-449.07957551,0.00037259,7]
[377671714,1754484638393,-500.0,0.00037259,7]
[377671716,1754484638402,-150.0,0.00037271,7]
[377671755,1754484638776,-150.0,0.00037271,7]
[377671757,1754484638785,-295.0,0.000373,2]
[377671759,1754484638794,-170.84,0.00037327,2]
[377671761,1754484638804,-180.96,0.00037327,3]
[377671763,1754484638814,-485.16,0.00037327,2]
[377671765,1754484638824,-167.59,0.00037356,2]
[377671767,1754484638833,-1744.76304641,0.00037385,2]
[377671769,1754484638843,-1873.12655651,0.000375,2]
[377671929,1754484640375,-447.06094897,0.00032311,3]
[377672214,1754484643221,-440.93905103,0.00032311,3]
[377672217,1754484643231,-888.0,0.00032811,3]
[377672219,1754484643240,-1776.0,0.00034551,3]
[377672221,1754484643249,-150.0,0.00034663,2]
[377672223,1754484643259,-1776.0,0.00035051,3]
[377672225,1754484643268,-126.87344349,0.000375,2]
[377672227,1754484643277,-409.504,0.00037663,2]
[377672229,1754484643287,-165.54090231,0.0003768,120]
[377672231,1754484643297,-301.25,0.00037767,2]
[377672233,1754484643306,-150.0,0.00037925,7]
[377672235,1754484643316,-555.0,0.00038,22]
[377672237,1754484643325,-691.08168417,0.00038,9]
[377672886,1754484842490,1000.0,0.0002739,120]
[377672893,1754485149510,156.12,0.00013699,2]
[377672896,1754485204098,1000.0,0.0002739,120]
[377672897,1754485204166,1000.0,0.00027945,120]
[377672912,1754485599454,151.0,0.00030136,120]
[377672942,1754485832255,-212.94795297,0.000249,2]
[377672943,1754485832265,-709.16732063,0.0002739,4]
[377672944,1754485832319,-290.83267937,0.0002739,4]
[377672945,1754485832328,-400.0,0.000277,15]
[377672946,1754485832338,-179.96,0.00030989,2]
[377672947,1754485832347,-600.0,0.00031782,2]
[377672948,1754485832356,-179.96,0.0003272,2]
[377672949,1754485832365,-248.83586156,0.0003355,16]
[377672950,1754485832375,-457.43778519,0.00033746,2]
[377672951,1754485832384,-211.52696026,0.00033746,2]
[377672952,1754485832394,-301.25,0.00034138,2]
[377672953,1754485832403,-179.96,0.0003445,2]
[377672954,1754485832412,-150.0,0.00034663,2]
[377672955,1754485832422,-2000.0,0.000348,2]
[377672956,1754485832431,-152.0,0.00034887,3]
[377672957,1754485832441,-297.168,0.00034941,2]
[377672958,1754485832452,-150.0,0.00034941,2]
[377672959,1754485832461,-809.0,0.00034941,2]
[377672960,1754485832471,-597.0,0.00034941,2]
[377672961,1754485832481,-958.0,0.00034941,2]
[377672962,1754485832490,-195.016,0.00034941,2]
[377672963,1754485832499,-150.0,0.0003531,4]
[377672999,1754485832813,-150.0,0.0003531,4]
[377673003,1754485832855,-150.0,0.0003531,4]
[377673005,1754485832864,-150.99,0.00035455,2]
[377673007,1754485832873,-179.96,0.0003618,2]
[377673009,1754485832882,-164.881,0.000362,44]
[377673011,1754485832891,-1196.27,0.000362,2]
[377673013,1754485832900,-1045.76821615,0.00036202,5]
[377673015,1754485832910,-359.31,0.00036425,2]
[377673017,1754485832920,-150.0,0.00036425,2]
[377673019,1754485832930,-359.31,0.00036425,2]
[377673021,1754485832939,-234.46,0.0003674,30]
[377673023,1754485832948,-175.0,0.00036844,7]
[377673025,1754485832958,-153.62,0.00036864,2]
[377673027,1754485832967,-391.45,0.00036864,2]
[377673029,1754485832976,-1275.4449721,0.00036963,4]
[377673031,1754485832986,-500.0,0.00036985,7]
[377673033,1754485832995,-500.0,0.00037089,5]
[377673035,1754485833004,-284.0,0.000372,2]
[377673036,1754485833014,-700.0,0.00037259,7]
[377673038,1754485833024,-500.0,0.00037259,7]
[377673041,1754485833034,-171.61291374,0.00037259,7]
[377673042,1754485833044,-2000.0,0.000375,2]
[377673044,1754485833053,-248.83586156,0.0003755,7]
[377673047,1754485833067,-301.25,0.00037552,2]
[377673049,1754485833077,-165.54090231,0.00037584,120]
[377673051,1754485833088,-2395.82533645,0.000376,2]
[377673052,1754485833098,-151.0,0.0003766,7]
[377673054,1754485833108,-500.0,0.00037807,7]
[377673056,1754485833118,-179.96,0.00037911,2]
[377673058,1754485833127,-500.0,0.00037911,2]
[377673060,1754485833137,-150.0,0.00037911,2]
[377673062,1754485833147,-454.0,0.00037911,2]
[377673064,1754485833156,-248.83586156,0.0003795,30]
[377673066,1754485833166,-1000.0,0.00037963,2]
[377673068,1754485833176,-706.94691386,0.0003797,2]
[377673070,1754485833186,-425.27348476,0.00037999,22]
[377673083,1754485833303,-352.72651524,0.00037999,22]
[377673085,1754485833313,-151.0,0.00037999,22]
[377673087,1754485833323,-156.587,0.00037999,22]
[377673089,1754485833332,-162.380719,0.00037999,22]
[377673091,1754485833342,-168.3888056,0.00037999,22]
[377673093,1754485833352,-500.0,0.00037999,22]
[377673095,1754485833361,-174.61919141,0.00037999,22]
[377673097,1754485833371,-150.0,0.00037999,22]
[377673099,1754485833381,-451.13677774,0.00037999,22]
[377673101,1754485833391,-500.0,0.00037999,22]
[377673103,1754485833401,-500.0,0.00037999,22]
[377673106,1754485833411,-150.0,0.00037999,22]
[377673107,1754485833420,-501.16774228,0.00037999,22]
[377673109,1754485833430,-151.0,0.00037999,22]
[377673111,1754485833439,-151.0,0.00037999,22]
[377673113,1754485833449,-161.97088715,0.00037999,22]
[377673115,1754485833458,-500.0,0.00037999,22]
[377673118,1754485833469,-151.0,0.00037999,22]
[377673119,1754485833478,-151.0,0.00037999,22]
[377673121,1754485833488,-500.0,0.00037999,22]
[377673124,1754485833497,-362.76393225,0.00037999,22]
[377673126,1754485833508,-500.0,0.00037999,22]
[377673128,1754485833518,-500.0,0.00037999,22]
[377673129,1754485833528,-150.0,0.00037999,22]
[377673131,1754485833537,-521.21102257,0.00037999,22]
[377673133,1754485833547,-200.0,0.00037999,22]
[377673135,1754485833556,-227.88548418,0.00037999,22]
[377673671,1754485838909,-888.0,0.00031489,3]
[377673673,1754485838919,-1776.0,0.00033729,3]
[377673675,1754485838928,-2187.79181179,0.00034941,2]
[377673792,1754485840100,-153.0,0.00025549,3]
[377673794,1754485840111,-249.82543338,0.00031989,3]
[377673796,1754485840122,-588.0,0.00031989,3]
[377673803,1754485840176,-50.17456662,0.00031989,3]
[377673805,1754485840186,-437.27395389,0.00034229,3]
[377673861,1754485840716,-888.0,0.00032489,3]
[377673863,1754485840726,-1338.72604611,0.00034229,3]
[377673865,1754485840736,-1949.20818821,0.00034941,2]
[377673867,1754485840745,-81.83736907,0.00034941,2]
[377674106,1754485843111,-155.42404249,0.00025549,3]
[377674108,1754485843120,-742.81727897,0.00034729,3]
[377674471,1754485846788,-581.8,0.00034729,3]
[377674487,1754485846927,-451.38272103,0.00034729,3]
[377674489,1754485846937,-609.37527897,0.00034941,2]
[377675939,1754486378845,156.22,0.00013699,2]
[377675942,1754486404914,1000.0,0.00029017,120]
[377675943,1754486405042,1000.0,0.0002876,120]
[377675958,1754486791721,854.7623156,0.00030136,120]
[377676003,1754487034535,-151.0,0.00026256,3]
[377676004,1754487034545,-151.0,0.00027185,3]
[377676005,1754487034555,-151.0,0.00027185,3]
[377676006,1754487034564,-220.91617822,0.00027185,3]
[377676007,1754487034575,-151.0,0.00027185,3]
[377676008,1754487034584,-1200.0,0.00027389,2]
[377676009,1754487034593,-19889.02334268,0.0002739,2]
[377676010,1754487034603,-273.49328814,0.00027831,2]
[377676011,1754487034612,-172.81,0.00027931,2]
[377676012,1754487034621,-158.78,0.00028878,2]
[377676013,1754487034632,-200.72251034,0.0003013,5]
[377676014,1754487034642,-998.6980012,0.000305,2]
[377676015,1754487034651,-158.78,0.00030933,2]
[377676016,1754487034661,-574.9,0.00031444,2]
[377676017,1754487034673,-250.0,0.00032,120]
[377676018,1754487034682,-158.78,0.00032988,2]
[377676019,1754487034693,-301.25,0.00033,2]
[377676020,1754487034703,-373.25379233,0.00033552,16]
[377676021,1754487034712,-457.43778519,0.00033769,2]
[377676022,1754487034721,-2191.93767412,0.00034,2]
[377676023,1754487034730,-156.22,0.00034247,2]
[377676024,1754487034740,-1000.0,0.00034376,2]
[377676025,1754487034749,-514.0,0.00034463,2]
[377676026,1754487034760,-352.24,0.0003457,2]
[377676027,1754487034770,-647.77032401,0.00035014,2]
[377676028,1754487034780,-158.78,0.00035043,2]
[377676029,1754487034790,-211.01,0.00035147,30]
[377676030,1754487034800,-2000.0,0.000353,2]
[377676031,1754487034809,-150.0,0.0003531,4]
[377676032,1754487034818,-36.99635308,0.0003531,4]
[377676033,1754487035214,-113.00364692,0.0003531,4]
[377676034,1754487035224,-150.0,0.0003531,4]
[377676035,1754487035233,-164.881,0.00035378,41]
[377676036,1754487035242,-564.0,0.00035379,2]
[377676037,1754487035252,-2023.0,0.00035379,2]
[377676038,1754487035262,-597.0,0.00035379,2]
[377676039,1754487035272,-1652.0,0.00035379,2]
[377676040,1754487035282,-1170.0,0.00035379,2]
[377676041,1754487035293,-200.788,0.00035379,2]
[377676042,1754487035303,-278.94102783,0.00035379,2]
[377676043,1754487035315,-940.61513571,0.00035379,2]
[377676044,1754487035326,-469.47929293,0.00035379,2]
[377676045,1754487035338,-342.79160002,0.00035379,2]
[377676154,1754487039703,-888.0,0.00028331,3]
[377676156,1754487039712,-732.62948467,0.00030571,3]
[377676158,1754487039723,-470.66321351,0.00030571,3]
[377676176,1754487039888,-572.70730182,0.00030571,3]
[377676178,1754487039898,-211.52696026,0.00035246,2]
[377676180,1754487039908,-360.0718107,0.00035379,2]
[377676202,1754487040091,-116.27813281,0.00035379,2]
[377676205,1754487040101,-388.901,0.00035379,2]
[377676207,1754487040111,-809.0,0.00035379,2]
[377676210,1754487040120,-911.26088006,0.00035379,2]
[377676218,1754487040152,-43.73911994,0.00035379,2]
[377676221,1754487040162,-10437.99296096,0.00035455,2]
[377676428,1754487042116,-888.0,0.00028831,3]
[377676430,1754487042125,-1776.0,0.00031071,3]
[377676432,1754487042134,-622.03009981,0.00035455,2]
[377676434,1754487042146,-5821.59382798,0.00035455,2]
[377676439,1754487042296,-6290.55472126,0.00035455,2]
[377676442,1754487042308,-2089.4,0.00035455,2]
[377676737,1754487045059,-594.52268792,0.00029331,3]
[377676740,1754487045080,-293.47731208,0.00029331,3]
[377676742,1754487045090,-1776.0,0.00031571,3]
[377676744,1754487045100,-1251.0,0.00035379,2]
[377676746,1754487045110,-3894.40242608,0.00035455,2]
[377676767,1754487045314,-832.37000001,0.00035455,2]
[377676779,1754487045417,-296.13443335,0.00035455,2]
[377676781,1754487045429,-129307.33194505,0.00035455,2]
[377677079,1754487048365,-888.0,0.00029831,3]
[377677081,1754487048375,-410.10342144,0.00032071,3]
[377677084,1754487048387,-1365.89657856,0.00032071,3]
[377677086,1754487048397,-1149.83103757,0.00035455,2]
[377677092,1754487048452,-251.253999,0.00035455,2]
[377677094,1754487048463,-878.15443804,0.00035455,2]
[377677100,1754487048539,-392.01112832,0.00035455,2]
[377677102,1754487048552,-58386.11330405,0.00035455,2]
[377677107,1754487048608,-310.9742,0.00035455,2]
[377677109,1754487048620,-294.965,0.00035455,2]
[377677111,1754487048631,-8146.46909685,0.00035455,2]
[377677113,1754487048646,-337.82000013,0.00035455,2]
[377677115,1754487048659,-400.0,0.00035455,2]
[377677639,1754487689831,450.0,0.000205,2]
[377677641,1754487922299,156.43,0.00013699,2]
[377677669,1754488231923,-195.08080236,0.00023666,2]
[377677672,1754488231933,-151.91919764,0.00030375,2]
[377677685,1754488232388,-308.00080236,0.00030375,2]
[377677686,1754488232397,-513.0,0.00032463,2]
[377677687,1754488232407,-600.0,0.000333,15]
[377677688,1754488232416,-156.43,0.00034247,2]
[377677689,1754488232425,-200.0,0.00034392,2]
[377677690,1754488232435,-250.0,0.00034392,2]
[377677691,1754488232444,-409.17,0.00034496,2]
[377677692,1754488232454,-158.23,0.00034532,120]
[377677693,1754488232463,-300.0,0.00034567,3]
[377677694,1754488232472,-400.0,0.00034567,2]
[377677695,1754488232481,-2343.71471479,0.00034568,2]
[377677696,1754488232492,-400.26953396,0.00034568,2]
[377677697,1754488232502,-675.0,0.00034568,2]
[377677698,1754488232616,-424.2,0.00034568,2]
[377677750,1754488239762,-888.0,0.00030875,3]
[377677751,1754488239773,-1776.0,0.00033115,3]
[377677752,1754488239783,-15374.17093088,0.00034568,2]
[377677753,1754488240968,-574.4459996,0.00031375,3]
[377677781,1754488242706,-313.5540004,0.00031375,3]
[377677783,1754488242716,-888.0,0.00031875,3]
[377677785,1754488242725,-1738.05185329,0.00033615,3]
[377677792,1754488245494,-888.0,0.00031374,3]
[377677793,1754488245504,-37.94814671,0.00033615,3]
[377677794,1754488245513,-588.5942188,0.00034115,3]
[377677795,1754488245525,-1187.4057812,0.00034115,3]
[377677796,1754488245537,-1009.09482037,0.00034568,2]
[377677797,1754488245546,-118.09939843,0.00034591,2]
[377677816,1754488603533,40026.8446,3.9e-05,60]
[377677832,1754488981593,156.43,0.00013699,2]
[377677893,1754489322492,209.0,0.0003013,120]
[377677902,1754489432038,-152.71,0.00028218,2]
[377677903,1754489432047,-152.71,0.00030044,2]
[377677904,1754489432057,-143.52006197,0.00030212,2]
[377677905,1754489432069,-407.52993803,0.00030212,2]
[377677906,1754489432078,-183.9426124,0.000305,2]
[377677907,1754489432111,-814.7553878,0.000305,2]
[377677908,1754489432119,-273.49328814,0.00031771,2]
[377677909,1754489432129,-152.71,0.00031871,2]